Workbook

Sheet Start
B1: OM DEN HÄR MALLEN
B2: Använd kalkylbladet Månatlig studiebudget för att hålla reda på inkomster, utgifter och kassaflöde.
B3: Ange månadsinkomster och -utgifter för att beräkna summa inkomster och utgifter.
B4: kassaflöde beräknas automatiskt och diagrammet över kassaflöde uppdateras åt dig.
B5: Välj skjutreglaget för få diagram över inkomster, utgifter och kassaflöde för en månad och ett år.
B6: Obs!
B7: Ytterligare anvisningar finns i kolumn A i kalkylbladet. Den här texten har avsiktligt dolts. Om du vill ta bort texten markerar du kolumn A och väljer sedan TA BORT. Om du vill visa texten markerar du kolumn A och ändrar sedan teckenfärg.

Sheet Månatlig studiebudget
A1: Skapa en månatlig studiebudget i det här kalkylbladet. Kalkylbladets titel finns i cellen till höger och i cell B1. Anvisningar för hur du använder det här kalkylbladet finns i cellerna i den här kolumnen. Fler anvisningar finns i cell A4. | B1: Månatlig studiebudget
A4: Etiketten Inkomster finns i cellen till höger, etiketten Utgifter finns i cell E4 och etiketten Kassaflöde i cell M4. | B4: =diagram_beräkningar!$D$6 -> inkomst i january: | E4: =diagram_beräkningar!$D$7 -> utgifter i january: | M4: =diagram_beräkningar!$D$8 -> kassaflöde january:
A5: Inkomster uppdateras automatiskt i cellen till höger, utgifter i cell E5 och kassaflöde i M5. | B5: =" "&diagram_beräkningar!$F$6 -> 12 25 kr | E5: =" "&diagram_beräkningar!$F$7 -> 10 56 kr | M5: =" "&diagram_beräkningar!$F$8 -> 169 kr
A6: Ringdiagram som visar inkomstöversikt i cellen till höger, utgiftsöversikt i cell E6 och stapeldiagram som visar positivt och negativt kassaflöde i cell M6 uppdateras automatiskt. Fler anvisningar finns i cell A17. | B6: Ringdiagram som visar inkomstöversikt för vald månad eller valt år finns i den här cellen. | E6: Ringdiagram som visar utgiftsöversikt för vald månad eller valt år finns i den här cellen. | M6: Stapeldiagram som visar det positiva och negativa kassaflödet för vald månad eller valt år finns i den här cellen.
B16: Linjediagram som visar kassaflödet för vald månad eller valt år finns i den här cellen.
A17: Linjediagram för kassaflöde finns i cellen till höger. Fler anvisningar finns i cell A21.
A21: Välj skjutreglaget till höger för att få månadsvisa eller årsvisa data och diagram för inkomster, utgifter och kassaflöde. Fler anvisningar finns i cell A25. | B21: Skjutreglage finns i den här cellen.
A25: Välj Månad i cellen till höger. Tryck på ALT+NEDÅTPIL för att se alternativen och sedan NEDÅTPIL och RETUR för att välja alternativ. | B25: JAN
A26: Vald period uppdateras automatiskt i cell P26. | P26: =ValdPeriod -> JAN
A27: Etiketter finns på den här raden, etiketten Månadskassa efter utgifter i cellen till höger, månader i cell C27 till N27, år i O27 och ökning i procent i P27. | B27: Månadskassa efter utgifter | C27: =FörstaMånaden -> JAN | D27: =NästaMånad -> FEB | E27: MAR | F27: APR | G27: MAY | H27: JUN | I27: JUL | J27: AUG | K27: SEP | L27: OCT | M27: NOV | N27: DEC | O27: ÅR | P27: ÖKN %
A28: Etiketten Kassaflöde finns i cellen till höger. Kassaflöde för varje månad beräknas automatiskt i cell C28 till N28, årsbelopp i O28 och ökning i procent i P28. Miniatyrdiagram uppdateras i cell Q28. | B28: Kassaflöde | C28: =C37-C72 -> 169 | D28: 69 | E28: 192 | F28: 199 | G28: 204 | H28: -771 | I28: 124 | J28: 154 | K28: -721 | L28: 109 | M28: 34 | N28: -61 | O28: =SUM(C28:N28) -> -299 | P28: =INDEX($C28:$O28,,ValdPeriodKolumn)/INDEX($C$37:$O$37,,ValdPeriodKolumn) -> 13.8%
A29: Etiketten Ackumulerat kassaflöde finns i cellen till höger. Ackumulerat kassaflöde för varje månad beräknas automatiskt i cell C30 till N29, årsbelopp i O29 och ökning i procent i P29. Miniatyrdiagram uppdateras i cell Q29. Fler anvisningar finns i cell A31. | B29: Ackumulerat kassaflöde | C29: =SUM($C$28:C$28) -> 169 | D29: =SUM($C$28:D$28) -> 238 | E29: =SUM($C$28:E$28) -> 430 | F29: =SUM($C$28:F$28) -> 629 | G29: =SUM($C$28:G$28) -> 833 | H29: =SUM($C$28:H$28) -> 62 | I29: =SUM($C$28:I$28) -> 186 | J29: =SUM($C$28:J$28) -> 340 | K29: =SUM($C$28:K$28) -> -381 | L29: =SUM($C$28:L$28) -> -272 | M29: =SUM($C$28:M$28) -> -238 | N29: =SUM($C$28:N$28) -> -299
A31: Etiketten Månadsinkomst finns i cellen till höger, månader i cell C31 till N31, år i O31 och etiketten Ökning i procent i P31. Ange poster för månadsinkomst i cell B32 till B36 och månadsbelopp i cell C32 till N36. Årsinkomsten beräknas automatiskt i cell O32 till O36 och ökning i procent i cell P32 till P36. Fler anvisningar finns i cell A37. | B31: MÅNADSINKOMST | C31: =FörstaMånaden -> JAN | D31: =NästaMånad -> FEB | E31: MAR | F31: APR | G31: MAY | H31: JUN | I31: JUL | J31: AUG | K31: SEP | L31: OCT | M31: NOV | N31: DEC | O31: ÅR | P31: ÖKN %
B32: Ekonomiskt stöd (anslag, stipendier, lån) som betalas ut till dig | C32: 0 | D32: 0 | E32: 750 | F32: 750 | G32: 750 | H32: 750 | I32: 750 | J32: 750 | K32: 750 | L32: 750 | M32: 750 | N32: 750 | O32: =SUM(C32:N32) -> 7,500 | P32: =INDEX($C32:$O32,,ValdPeriodKolumn)/INDEX($C$37:$O$37,,ValdPeriodKolumn) -> 0.0%
B33: Lön efter skatt från ett jobb | C33: 450 | D33: 450 | E33: 450 | F33: 450 | G33: 450 | H33: 450 | I33: 450 | J33: 450 | K33: 550 | L33: 350 | M33: 350 | N33: 350 | O33: 5,200 | P33: =INDEX($C33:$O33,,ValdPeriodKolumn)/INDEX($C$37:$O$37,,ValdPeriodKolumn) -> 36.7%
B34: Ekonomisk hjälp från familjen | C34: 200 | D34: 200 | E34: 1,000 | F34: 350 | G34: 350 | H34: 350 | I34: 350 | J34: 350 | K34: 350 | L34: 350 | M34: 350 | N34: 350 | O34: 4,550 | P34: =INDEX($C34:$O34,,ValdPeriodKolumn)/INDEX($C$37:$O$37,,ValdPeriodKolumn) -> 16.3%
B35: Uttag från sparande | C35: 500 | D35: 350 | E35: 150 | F35: 0 | G35: 0 | H35: 0 | I35: 0 | J35: 0 | K35: 0 | L35: 0 | M35: 0 | N35: 0 | O35: 1,000 | P35: =INDEX($C35:$O35,,ValdPeriodKolumn)/INDEX($C$37:$O$37,,ValdPeriodKolumn) -> 40.8%
B36: Övrigt (underhållsbidrag, ekonomiskt bistånd, gåvor osv.) | C36: 75 | D36: 75 | E36: 75 | F36: 75 | G36: 75 | H36: 75 | I36: 75 | J36: 75 | K36: 75 | L36: 75 | M36: 75 | N36: 75 | O36: 900 | P36: =INDEX($C36:$O36,,ValdPeriodKolumn)/INDEX($C$37:$O$37,,ValdPeriodKolumn) -> 6.1%
A37: Etiketten Summa inkomster finns i cellen till höger. Summa inkomster för varje månad beräknas automatiskt i cell C37 till N37, årsinkomst i O37 och ökning i procent i P37. Miniatyrdiagram uppdateras i cell Q37. Fler anvisningar finns i cell A39. | B37: SUMMA INKOMSTER | C37: =SUM(C32:C36) -> 1,225 | D37: 1,075 | E37: 2,425 | F37: 1,625 | G37: 1,625 | H37: 1,625 | I37: 1,625 | J37: 1,625 | K37: 1,725 | L37: 1,525 | M37: 1,525 | N37: 1,525 | O37: 19,150 | P37: =INDEX($C37:$O37,,ValdPeriodKolumn)/INDEX($C$37:$O$37,,ValdPeriodKolumn) -> 100.0%
A39: Etiketten Månadsutgift finns i cellen till höger, månader i cell C39 till N39, år i O39 och etiketten Ökning i procent i P39. | B39: MÅNADSUTGIFT | C39: =FörstaMånaden -> JAN | D39: =NästaMånad -> FEB | E39: MAR | F39: APR | G39: MAY | H39: JUN | I39: JUL | J39: AUG | K39: SEP | L39: OCT | M39: NOV | N39: DEC | O39: ÅR | P39: ÖKN %
A40: Ange eller ändra utgiftspost i cellen till höger och månadsbelopp i cell C40 till N43. Årsbelopp beräknas automatiskt i cell O40 till O43 och ökning i procent i cell P40 till P43. Miniatyrdiagram uppdateras i cell Q40. Fler anvisningar finns i cell A45. | B40: Mat och husrum | C40: =SUM(C41:C43) -> 565 | D40: 565 | E40: 565 | F40: 565 | G40: 565 | H40: 565 | I40: 565 | J40: 565 | K40: 565 | L40: 565 | M40: 565 | N40: 565 | O40: =SUM(C40:N40) -> 6,780 | P40: =INDEX($C40:$O40,,ValdPeriodKolumn)/INDEX($C$72:$O$72,,ValdPeriodKolumn) -> 53.5%
C41: 315 | D41: 315 | E41: 315 | F41: 315 | G41: 315 | H41: 315 | I41: 315 | J41: 315 | K41: 315 | L41: 315 | M41: 315 | N41: 315 | O41: =SUM(C41:N41) -> 3,780 | P41: =INDEX($C41:$O41,,ValdPeriodKolumn)/INDEX($C$72:$O$72,,ValdPeriodKolumn) -> 29.8%
C42: 200 | D42: 200 | E42: 200 | F42: 200 | G42: 200 | H42: 200 | I42: 200 | J42: 200 | K42: 200 | L42: 200 | M42: 200 | N42: 200 | O42: =SUM(C42:N42) -> 2,400 | P42: =INDEX($C42:$O42,,ValdPeriodKolumn)/INDEX($C$72:$O$72,,ValdPeriodKolumn) -> 18.9%
C43: 50 | D43: 50 | E43: 50 | F43: 50 | G43: 50 | H43: 50 | I43: 50 | J43: 50 | K43: 50 | L43: 50 | M43: 50 | N43: 50 | O43: =SUM(C43:N43) -> 600 | P43: =INDEX($C43:$O43,,ValdPeriodKolumn)/INDEX($C$72:$O$72,,ValdPeriodKolumn) -> 4.7%
A45: Ange eller ändra utgiftspost i cellen till höger och månadsbelopp i cell C45 till N47. Årsbelopp beräknas automatiskt i cell O45 till O47 och ökning i procent i cell P45 till P47. Miniatyrdiagram uppdateras i cell Q47. Fler anvisningar finns i cell A49. | B45: Skolavgifter och avgifter | C45: =SUM(C46:C47) -> 0 | D45: 0 | E45: 750 | F45: 0 | G45: 0 | H45: 650 | I45: 0 | J45: 0 | K45: 650 | L45: 0 | M45: 0 | N45: 0 | O45: =SUM(C45:N45) -> 2,050 | P45: =INDEX($C45:$O45,,ValdPeriodKolumn)/INDEX($C$72:$O$72,,ValdPeriodKolumn) -> 0.0%
C46: 0 | D46: 0 | E46: 500 | F46: 0 | G46: 0 | H46: 500 | I46: 0 | J46: 0 | K46: 500 | L46: 0 | M46: 0 | N46: 0 | O46: =SUM(C46:N46) -> 1,500 | P46: =INDEX($C46:$O46,,ValdPeriodKolumn)/INDEX($C$72:$O$72,,ValdPeriodKolumn) -> 0.0%
C47: 0 | D47: 0 | E47: 250 | F47: 0 | G47: 0 | H47: 150 | I47: 0 | J47: 0 | K47: 150 | L47: 0 | M47: 0 | N47: 0 | O47: =SUM(C47:N47) -> 550 | P47: =INDEX($C47:$O47,,ValdPeriodKolumn)/INDEX($C$72:$O$72,,ValdPeriodKolumn) -> 0.0%
A49: Ange eller ändra utgiftspost i cellen till höger och månadsbelopp i cell C49 till N51. Årsbelopp beräknas automatiskt i cell O49 till O51 och ökning i procent i cell P49 till P51. Miniatyrdiagram uppdateras i cell Q49. Fler anvisningar finns i cell A53. | B49: Böcker och material | C49: =SUM(C50:C51) -> 0 | D49: 0 | E49: 325 | F49: 20 | G49: 20 | H49: 325 | I49: 10 | J49: 10 | K49: 400 | L49: 15 | M49: 15 | N49: 15 | O49: =SUM(C49:N49) -> 1,155 | P49: =INDEX($C49:$O49,,ValdPeriodKolumn)/INDEX($C$72:$O$72,,ValdPeriodKolumn) -> 0.0%
C50: 0 | D50: 0 | E50: 225 | F50: 0 | G50: 0 | H50: 275 | I50: 0 | J50: 0 | K50: 325 | L50: 0 | M50: 0 | N50: 0 | O50: =SUM(C50:N50) -> 825 | P50: =INDEX($C50:$O50,,ValdPeriodKolumn)/INDEX($C$72:$O$72,,ValdPeriodKolumn) -> 0.0%
C51: 0 | D51: 0 | E51: 100 | F51: 20 | G51: 20 | H51: 50 | I51: 10 | J51: 10 | K51: 75 | L51: 15 | M51: 15 | N51: 15 | O51: =SUM(C51:N51) -> 330 | P51: =INDEX($C51:$O51,,ValdPeriodKolumn)/INDEX($C$72:$O$72,,ValdPeriodKolumn) -> 0.0%
A53: Ange eller ändra utgiftspost i cellen till höger och månadsbelopp i cell C53 till N57. Årsbelopp beräknas automatiskt i cell O53 till O57 och ökning i procent i cell P53 till P57. Miniatyrdiagram uppdateras i cell Q53. Fler anvisningar finns i cell A59. | B53: Transport | C53: =SUM(C54:C57) -> 224 | D53: 174 | E53: 174 | F53: 219 | G53: 174 | H53: 174 | I53: 274 | J53: 219 | K53: 174 | L53: 174 | M53: 224 | N53: 269 | O53: =SUM(C53:N53) -> 2,473 | P53: =INDEX($C53:$O53,,ValdPeriodKolumn)/INDEX($C$72:$O$72,,ValdPeriodKolumn) -> 21.2%
C54: 30 | D54: 30 | E54: 30 | F54: 75 | G54: 30 | H54: 30 | I54: 30 | J54: 75 | K54: 30 | L54: 30 | M54: 30 | N54: 75 | O54: =SUM(C54:N54) -> 495 | P54: =INDEX($C54:$O54,,ValdPeriodKolumn)/INDEX($C$72:$O$72,,ValdPeriodKolumn) -> 2.8%
C55: 129 | D55: 129 | E55: 129 | F55: 129 | G55: 129 | H55: 129 | I55: 129 | J55: 129 | K55: 129 | L55: 129 | M55: 129 | N55: 129 | O55: =SUM(C55:N55) -> 1,548 | P55: =INDEX($C55:$O55,,ValdPeriodKolumn)/INDEX($C$72:$O$72,,ValdPeriodKolumn) -> 12.2%
C56: 15 | D56: 15 | E56: 15 | F56: 15 | G56: 15 | H56: 15 | I56: 15 | J56: 15 | K56: 15 | L56: 15 | M56: 15 | N56: 15 | O56: =SUM(C56:N56) -> 180 | P56: =INDEX($C56:$O56,,ValdPeriodKolumn)/INDEX($C$72:$O$72,,ValdPeriodKolumn) -> 1.4%
C57: 50 | D57: 0 | E57: 0 | F57: 0 | G57: 0 | H57: 0 | I57: 100 | J57: 0 | K57: 0 | L57: 0 | M57: 50 | N57: 50 | O57: =SUM(C57:N57) -> 250 | P57: =INDEX($C57:$O57,,ValdPeriodKolumn)/INDEX($C$72:$O$72,,ValdPeriodKolumn) -> 4.7%
A59: Ange eller ändra utgiftspost i cellen till höger och månadsbelopp i cell C59 till N65. Årsbelopp beräknas automatiskt i cell O59 till O65 och ökning i procent i cell P59 till P65. Miniatyrdiagram uppdateras i cell Q59. Fler anvisningar finns i cell A67. | B59: Övrigt | C59: =SUM(C60:C65) -> 69 | D59: 69 | E59: 169 | F59: 369 | G59: 419 | H59: 444 | I59: 419 | J59: 419 | K59: 394 | L59: 394 | M59: 419 | N59: 469 | O59: =SUM(C59:N59) -> 4,053 | P59: =INDEX($C59:$O59,,ValdPeriodKolumn)/INDEX($C$72:$O$72,,ValdPeriodKolumn) -> 6.5%
C60: 0 | D60: 0 | E60: 0 | F60: 50 | G60: 100 | H60: 100 | I60: 100 | J60: 100 | K60: 75 | L60: 75 | M60: 100 | N60: 100 | O60: 800 | P60: =INDEX($C60:$O60,,ValdPeriodKolumn)/INDEX($C$72:$O$72,,ValdPeriodKolumn) -> 0.0%
C61: 69 | D61: 69 | E61: 69 | F61: 69 | G61: 69 | H61: 69 | I61: 69 | J61: 69 | K61: 69 | L61: 69 | M61: 69 | N61: 69 | O61: 828 | P61: =INDEX($C61:$O61,,ValdPeriodKolumn)/INDEX($C$72:$O$72,,ValdPeriodKolumn) -> 6.5%
C62: 0 | D62: 0 | E62: 0 | F62: 0 | G62: 0 | H62: 25 | I62: 0 | J62: 0 | K62: 0 | L62: 0 | M62: 0 | N62: 50 | O62: 75 | P62: =INDEX($C62:$O62,,ValdPeriodKolumn)/INDEX($C$72:$O$72,,ValdPeriodKolumn) -> 0.0%
C63: 0 | D63: 0 | E63: 100 | F63: 100 | G63: 100 | H63: 100 | I63: 100 | J63: 100 | K63: 100 | L63: 100 | M63: 100 | N63: 100 | O63: 1,000 | P63: =INDEX($C63:$O63,,ValdPeriodKolumn)/INDEX($C$72:$O$72,,ValdPeriodKolumn) -> 0.0%
C64: 0 | D64: 0 | E64: 0 | F64: 50 | G64: 50 | H64: 50 | I64: 50 | J64: 50 | K64: 50 | L64: 50 | M64: 50 | N64: 50 | O64: 450 | P64: =INDEX($C64:$O64,,ValdPeriodKolumn)/INDEX($C$72:$O$72,,ValdPeriodKolumn) -> 0.0%
C65: 0 | D65: 0 | E65: 0 | F65: 100 | G65: 100 | H65: 100 | I65: 100 | J65: 100 | K65: 100 | L65: 100 | M65: 100 | N65: 100 | O65: 900 | P65: =INDEX($C65:$O65,,ValdPeriodKolumn)/INDEX($C$72:$O$72,,ValdPeriodKolumn) -> 0.0%
A67: Ange eller ändra utgiftspost i cellen till höger och månadsbelopp i cell C67 till N70. Årsbelopp beräknas automatiskt i cell O67 till O70 och ökning i procent i cell P67 till P70. Miniatyrdiagram uppdateras i cell Q67. Fler anvisningar finns i cell A72. | B67: Övriga utgifter | C67: =SUM(C68:C70) -> 198 | D67: =SUM(D68:D70) -> 198 | E67: 250 | F67: 253 | G67: 243 | H67: 238 | I67: 233 | J67: 258 | K67: 263 | L67: 268 | M67: 268 | N67: 268 | O67: =SUM(C67:N67) -> 2,938 | P67: =INDEX($C67:$O67,,ValdPeriodKolumn)/INDEX($C$72:$O$72,,ValdPeriodKolumn) -> 18.8%
C68: 123 | D68: 123 | E68: 123 | F68: 123 | G68: 123 | H68: 123 | I68: 123 | J68: 123 | K68: 123 | L68: 123 | M68: 123 | N68: 123 | O68: =SUM(C68:N68) -> 1,476 | P68: =INDEX($C68:$O68,,ValdPeriodKolumn)/INDEX($C$72:$O$72,,ValdPeriodKolumn) -> 11.6%
C69: 0 | D69: 0 | E69: 52 | F69: 55 | G69: 45 | H69: 40 | I69: 35 | J69: 60 | K69: 65 | L69: 70 | M69: 70 | N69: 70 | O69: =SUM(C69:N69) -> 562 | P69: =INDEX($C69:$O69,,ValdPeriodKolumn)/INDEX($C$72:$O$72,,ValdPeriodKolumn) -> 0.0%
C70: 75 | D70: 75 | E70: 75 | F70: 75 | G70: 75 | H70: 75 | I70: 75 | J70: 75 | K70: 75 | L70: 75 | M70: 75 | N70: 75 | O70: =SUM(C70:N70) -> 900 | P70: =INDEX($C70:$O70,,ValdPeriodKolumn)/INDEX($C$72:$O$72,,ValdPeriodKolumn) -> 7.1%
A72: Etiketten Summa utgifter finns i cellen till höger. Summa utgifter för varje månad beräknas automatiskt i cell C72 till N72, årsutgifter i O72 och ökning i procent i P72. Miniatyrdiagram uppdateras i cell Q72. | B72: SUMMA UTGIFTER | C72: =SUM(C40,C45,C49,C53,C59,C67) -> 1,056 | D72: 1,006 | E72: 2,233 | F72: 1,426 | G72: 1,421 | H72: 2,396 | I72: 1,501 | J72: 1,471 | K72: 2,446 | L72: 1,416 | M72: 1,491 | N72: 1,586 | O72: =SUM(C72:N72) -> 19,449 | P72: =INDEX($C72:$O72,,ValdPeriodKolumn)/INDEX($C$72:$O$72,,ValdPeriodKolumn) -> 100.0%

Sheet diagram_beräkningar (hidden)
A1: ***Det här bladet ska vara DOLT***
D3: =IFERROR(LOWER(TEXT(VALUE(ValdPeriod&" 1"),"MMMM")),"år") -> january
D5: Rubriker för dynamiskt diagram
D6: ="inkomst i "&D3&":" -> inkomst i january: | F6: =TEXT(INDEX('Månatlig studiebudget'!$C$37:$O$37,,ValdPeriodKolumn),"# ## kr") -> 12 25 kr
D7: ="utgifter i "&D3&":" -> utgifter i january: | F7: =TEXT(INDEX('Månatlig studiebudget'!$C$72:$O$72,,ValdPeriodKolumn),"# ## kr") -> 10 56 kr
D8: ="kassaflöde "&D3&":" -> kassaflöde january: | E8: =INDEX('Månatlig studiebudget'!C28:O28,RullningslistVärde) -> 169 | F8: =TEXT(E8,"# ## kr") -> 169 kr
D12: =LOWER('Månatlig studiebudget'!C27) -> jan | E12: =LOWER('Månatlig studiebudget'!D27) -> feb | F12: =LOWER('Månatlig studiebudget'!E27) -> mar | G12: =LOWER('Månatlig studiebudget'!F27) -> apr | H12: =LOWER('Månatlig studiebudget'!G27) -> may | I12: =LOWER('Månatlig studiebudget'!H27) -> jun | J12: =LOWER('Månatlig studiebudget'!I27) -> jul | K12: =LOWER('Månatlig studiebudget'!J27) -> aug | L12: =LOWER('Månatlig studiebudget'!K27) -> sep | M12: =LOWER('Månatlig studiebudget'!L27) -> oct | N12: =LOWER('Månatlig studiebudget'!M27) -> nov | O12: =LOWER('Månatlig studiebudget'!N27) -> dec | P12: =LOWER('Månatlig studiebudget'!O27) -> år
C13: Rullningslistvärde: | D13: 1
C14: Kassaflödesdiagram: | D14: =IF(ValdPeriod='Månatlig studiebudget'!C$31,IF('Månatlig studiebudget'!$C$28:$O$28>=0,'Månatlig studiebudget'!$C$28:$O$28,NA()),NA()) -> 69 | E14: =IF(ValdPeriod='Månatlig studiebudget'!D$31,IF('Månatlig studiebudget'!$C$28:$O$28>=0,'Månatlig studiebudget'!$C$28:$O$28,NA()),NA()) ->  | F14: =IF(ValdPeriod='Månatlig studiebudget'!E$31,IF('Månatlig studiebudget'!$C$28:$O$28>=0,'Månatlig studiebudget'!$C$28:$O$28,NA()),NA()) ->  | G14: =IF(ValdPeriod='Månatlig studiebudget'!F$31,IF('Månatlig studiebudget'!$C$28:$O$28>=0,'Månatlig studiebudget'!$C$28:$O$28,NA()),NA()) ->  | H14: =IF(ValdPeriod='Månatlig studiebudget'!G$31,IF('Månatlig studiebudget'!$C$28:$O$28>=0,'Månatlig studiebudget'!$C$28:$O$28,NA()),NA()) ->  | I14: =IF(ValdPeriod='Månatlig studiebudget'!H$31,IF('Månatlig studiebudget'!$C$28:$O$28>=0,'Månatlig studiebudget'!$C$28:$O$28,NA()),NA()) ->  | J14: =IF(ValdPeriod='Månatlig studiebudget'!I$31,IF('Månatlig studiebudget'!$C$28:$O$28>=0,'Månatlig studiebudget'!$C$28:$O$28,NA()),NA()) ->  | K14: =IF(ValdPeriod='Månatlig studiebudget'!J$31,IF('Månatlig studiebudget'!$C$28:$O$28>=0,'Månatlig studiebudget'!$C$28:$O$28,NA()),NA()) ->  | L14: =IF(ValdPeriod='Månatlig studiebudget'!K$31,IF('Månatlig studiebudget'!$C$28:$O$28>=0,'Månatlig studiebudget'!$C$28:$O$28,NA()),NA()) ->  | M14: =IF(ValdPeriod='Månatlig studiebudget'!L$31,IF('Månatlig studiebudget'!$C$28:$O$28>=0,'Månatlig studiebudget'!$C$28:$O$28,NA()),NA()) ->  | N14: =IF(ValdPeriod='Månatlig studiebudget'!M$31,IF('Månatlig studiebudget'!$C$28:$O$28>=0,'Månatlig studiebudget'!$C$28:$O$28,NA()),NA()) ->  | O14: =IF(ValdPeriod='Månatlig studiebudget'!N$31,IF('Månatlig studiebudget'!$C$28:$O$28>=0,'Månatlig studiebudget'!$C$28:$O$28,NA()),NA()) ->  | P14: =IF(ValdPeriod='Månatlig studiebudget'!O$31,IF('Månatlig studiebudget'!$C$28:$O$28>=0,'Månatlig studiebudget'!$C$28:$O$28,NA()),NA()) -> 
C15: Ackumulerat: | D15: =IF(ValdPeriod='Månatlig studiebudget'!C$31,IF('Månatlig studiebudget'!$C$28:$O$28<0,'Månatlig studiebudget'!$C$28:$O$28,NA()),NA()) ->  | E15: =IF(ValdPeriod='Månatlig studiebudget'!D$31,IF('Månatlig studiebudget'!$C$28:$O$28<0,'Månatlig studiebudget'!$C$28:$O$28,NA()),NA()) ->  | F15: =IF(ValdPeriod='Månatlig studiebudget'!E$31,IF('Månatlig studiebudget'!$C$28:$O$28<0,'Månatlig studiebudget'!$C$28:$O$28,NA()),NA()) ->  | G15: =IF(ValdPeriod='Månatlig studiebudget'!F$31,IF('Månatlig studiebudget'!$C$28:$O$28<0,'Månatlig studiebudget'!$C$28:$O$28,NA()),NA()) ->  | H15: =IF(ValdPeriod='Månatlig studiebudget'!G$31,IF('Månatlig studiebudget'!$C$28:$O$28<0,'Månatlig studiebudget'!$C$28:$O$28,NA()),NA()) ->  | I15: =IF(ValdPeriod='Månatlig studiebudget'!H$31,IF('Månatlig studiebudget'!$C$28:$O$28<0,'Månatlig studiebudget'!$C$28:$O$28,NA()),NA()) ->  | J15: =IF(ValdPeriod='Månatlig studiebudget'!I$31,IF('Månatlig studiebudget'!$C$28:$O$28<0,'Månatlig studiebudget'!$C$28:$O$28,NA()),NA()) ->  | K15: =IF(ValdPeriod='Månatlig studiebudget'!J$31,IF('Månatlig studiebudget'!$C$28:$O$28<0,'Månatlig studiebudget'!$C$28:$O$28,NA()),NA()) ->  | L15: =IF(ValdPeriod='Månatlig studiebudget'!K$31,IF('Månatlig studiebudget'!$C$28:$O$28<0,'Månatlig studiebudget'!$C$28:$O$28,NA()),NA()) ->  | M15: =IF(ValdPeriod='Månatlig studiebudget'!L$31,IF('Månatlig studiebudget'!$C$28:$O$28<0,'Månatlig studiebudget'!$C$28:$O$28,NA()),NA()) ->  | N15: =IF(ValdPeriod='Månatlig studiebudget'!M$31,IF('Månatlig studiebudget'!$C$28:$O$28<0,'Månatlig studiebudget'!$C$28:$O$28,NA()),NA()) ->  | O15: =IF(ValdPeriod='Månatlig studiebudget'!N$31,IF('Månatlig studiebudget'!$C$28:$O$28<0,'Månatlig studiebudget'!$C$28:$O$28,NA()),NA()) ->  | P15: =IF(ValdPeriod='Månatlig studiebudget'!O$31,IF('Månatlig studiebudget'!$C$28:$O$28<0,'Månatlig studiebudget'!$C$28:$O$28,NA()),NA()) -> 
C18: INKOMSTDIAGRAMDATA
C19: Ekonomiskt stöd (anslag, stipendier, lån) som betalas ut till dig | D19: ='Månatlig studiebudget'!P32 -> 0.0%
C20: Lön efter skatt från ett jobb | D20: ='Månatlig studiebudget'!P33 -> 36.7%
C21: Ekonomisk hjälp från familjen | D21: ='Månatlig studiebudget'!P34 -> 16.3%
C22: Uttag från sparande | D22: ='Månatlig studiebudget'!P35 -> 40.8%
C23: Övrigt (underhållsbidrag, ekonomiskt bistånd, gåvor osv.) | D23: ='Månatlig studiebudget'!P36 -> 6.1%
